fUSD/lending_fUSD_20251014
["ID","MTS","AMOUNT","RATE_DAILY","PERIOD"]
[391281794,1760466646163,-500.0,0.00016438,2]
[391281795,1760466646173,-1193.79,0.00016438,2]
[391281796,1760466646182,-500.0,0.00016438,2]
[391281797,1760466646191,-500.0,0.00016438,2]
[391281798,1760466646201,-1136.56,0.00016438,2]
[391281799,1760466646210,-510.81,0.00016438,2]
[391281800,1760466646219,-500.0,0.00016438,2]
[391281801,1760466646229,-500.0,0.00016438,2]
[391281802,1760466646239,-500.0,0.00016438,2]
[391281803,1760466646248,-1290.1,0.00016438,2]
[391281804,1760466646258,-500.0,0.00016438,2]
[391281805,1760466646266,-500.0,0.00016438,2]
[391281806,1760466646275,-500.0,0.00016438,2]
[391281807,1760466646285,-500.0,0.00016438,2]
[391281808,1760466646294,-500.0,0.00016438,2]
[391281809,1760466646304,-500.0,0.00016438,2]
[391281810,1760466646315,-1701.89,0.00016438,2]
[391281811,1760466646326,-500.0,0.00016438,2]
[391281812,1760466646336,-500.0,0.00016438,2]
[391281813,1760466646345,-500.0,0.00016438,2]
[391281814,1760466646354,-528.46,0.00016438,2]
[391281815,1760466646363,-500.0,0.00016438,2]
[391281816,1760466646373,-1801.04,0.00016438,2]
[391281817,1760466646383,-605.77,0.00016438,2]
[391281818,1760466646392,-732.24,0.00016438,2]
[391281819,1760466646404,-500.0,0.00016438,2]
[391281820,1760466646414,-2250.25,0.00016438,2]
[391281822,1760466646424,-629.05,0.00016438,2]
[391281824,1760466646433,-648.66514298,0.00016438,2]
[391281826,1760466646443,-1205.55,0.00016438,2]
[391281827,1760466646453,-151.0,0.00016438,2]
[391281829,1760466646463,-151.0,0.00016438,2]
[391281831,1760466646474,-605.05,0.00016438,2]
[391281834,1760466646484,-500.0,0.00016438,2]
[391281835,1760466646494,-231.690892,0.00016438,2]
[391281836,1760466646503,-500.0,0.00016438,2]
[391281837,1760466646513,-500.0,0.00016438,2]
[391281838,1760466646522,-585.94,0.00016438,2]
[391281839,1760466646532,-500.0,0.00016438,2]
[391281840,1760466646541,-516.23,0.00016438,2]
[391281841,1760466646551,-500.0,0.00016438,2]
[391281842,1760466646560,-500.0,0.00016438,2]
[391281843,1760466646573,-500.0,0.00016438,2]
[391281844,1760466646582,-825.86,0.00016438,2]
[391281845,1760466646592,-859.82,0.00016438,2]
[391281846,1760466646601,-500.0,0.00016438,2]
[391281847,1760466646611,-645.47,0.00016438,2]
[391281848,1760466646620,-500.0,0.00016438,2]
[391281849,1760466646630,-1208.62,0.00016438,2]
[391281850,1760466646639,-1283.73,0.00016438,2]
[391281851,1760466646649,-500.0,0.00016438,2]
[391281852,1760466646658,-637.72,0.00016438,2]
[391281853,1760466646667,-500.0,0.00016438,2]
[391281854,1760466646676,-164.126545,0.00016438,2]
[391281855,1760466646685,-500.0,0.00016438,2]
[391281856,1760466646694,-1152.98,0.00016438,2]
[391281857,1760466646703,-1385.76,0.00016438,2]
[391281858,1760466646712,-500.0,0.00016438,2]
[391281859,1760466646721,-500.0,0.00016438,2]
[391281860,1760466646730,-1500.11,0.00016438,2]
[391281861,1760466646739,-890.54,0.00016438,2]
[391281862,1760466646748,-500.0,0.00016438,2]
[391281863,1760466646757,-500.0,0.00016438,2]
[391281864,1760466646767,-500.0,0.00016438,2]
[391281865,1760466646776,-882.66,0.00016438,2]
[391281866,1760466646785,-691.14,0.00016438,2]
[391281867,1760466646794,-500.0,0.00016438,2]
[391281868,1760466646803,-500.0,0.00016438,2]
[391281869,1760466646816,-500.0,0.00016438,2]
[391281870,1760466646825,-500.0,0.00016438,2]
[391281871,1760466646834,-500.0,0.00016438,2]
[391281872,1760466646844,-590.61,0.00016438,2]
[391281873,1760466646853,-830.01,0.00016438,2]
[391281874,1760466646863,-500.0,0.00016438,2]
[391281875,1760466646872,-500.0,0.00016438,2]
[391281876,1760466646881,-848.78,0.00016438,2]
[391281877,1760466646890,-1065.03,0.00016438,2]
[391281878,1760466646899,-1229.11,0.00016438,2]
[391281879,1760466646908,-711.48,0.00016438,2]
[391281880,1760466646918,-500.0,0.00016438,2]
[391281881,1760466646927,-500.0,0.00016438,2]
[391281882,1760466646936,-599.39,0.00016438,2]
[391281883,1760466646945,-500.0,0.00016438,2]
[391281884,1760466646954,-500.0,0.00016438,2]
[391281885,1760466646963,-500.0,0.00016438,2]
[391281886,1760466646972,-500.0,0.00016438,2]
[391281887,1760466646982,-500.0,0.00016438,2]
[391281888,1760466646992,-733.9,0.00016438,2]
[391281889,1760466647001,-866.95,0.00016438,2]
[391281890,1760466647012,-500.0,0.00016438,2]
[391281891,1760466647022,-500.0,0.00016438,2]
[391281892,1760466647032,-454.08854794,0.00016438,2]
[391281893,1760466647042,-500.0,0.00016438,2]
[391281894,1760466647052,-500.0,0.00016438,2]
[391281895,1760466647061,-1571.74,0.00016438,2]
[391281896,1760466647073,-500.0,0.00016438,2]
[391281897,1760466647082,-500.0,0.00016438,2]
[391281898,1760466647092,-500.0,0.00016438,2]
[391281899,1760466647101,-500.0,0.00016438,2]
[391281900,1760466647110,-500.0,0.00016438,2]
[391281901,1760466647120,-151.0,0.00016438,2]
[391281902,1760466647129,-151.0,0.00016438,2]
[391281903,1760466647139,-151.0,0.00016438,2]
[391281904,1760466647148,-727.52,0.00016438,2]
[391281905,1760466647157,-500.0,0.00016438,2]
[391281906,1760466647166,-500.0,0.00016438,2]
[391281907,1760466647176,-500.0,0.00016438,2]
[391281908,1760466647185,-500.0,0.00016438,2]
[391281909,1760466647194,-500.0,0.00016438,2]
[391281910,1760466647203,-1719.79,0.00016438,2]
[391281911,1760466647212,-622.03,0.00016438,2]
[391281912,1760466647221,-500.0,0.00016438,2]
[391281913,1760466647230,-915.39,0.00016438,2]
[391281914,1760466647239,-500.0,0.00016438,2]
[391281915,1760466647248,-728.62,0.00016438,2]
[391281916,1760466647257,-500.0,0.00016438,2]
[391281917,1760466647266,-500.0,0.00016438,2]
[391281918,1760466647275,-500.0,0.00016438,2]
[391281919,1760466647285,-500.0,0.00016438,2]
[391281920,1760466647294,-719.65,0.00016438,2]
[391281921,1760466647303,-500.0,0.00016438,2]
[391281922,1760466647312,-500.0,0.00016438,2]
[391281923,1760466647322,-500.0,0.00016438,2]
[391281924,1760466647331,-500.0,0.00016438,2]
[391281925,1760466647340,-500.0,0.00016438,2]
[391281926,1760466647349,-699.89,0.00016438,2]
[391281927,1760466647358,-500.0,0.00016438,2]
[391281928,1760466647367,-1337.41,0.00016438,2]
[391281929,1760466647375,-578.96,0.00016438,2]
[391281930,1760466647385,-500.0,0.00016438,2]
[391281931,1760466647394,-1602.84,0.00016438,2]
[391281932,1760466647405,-500.0,0.00016438,2]
[391281933,1760466647414,-500.0,0.00016438,2]
[391281934,1760466647424,-500.0,0.00016438,2]
[391281935,1760466647433,-641.41,0.00016438,2]
[391281936,1760466647445,-500.0,0.00016438,2]
[391281937,1760466647455,-500.0,0.00016438,2]
[391281938,1760466647465,-500.0,0.00016438,2]
[391281939,1760466647475,-500.0,0.00016438,2]
[391281940,1760466647485,-500.0,0.00016438,2]
[391281941,1760466647495,-500.0,0.00016438,2]
[391281942,1760466647504,-500.0,0.00016438,2]
[391281943,1760466647513,-500.0,0.00016438,2]
[391281944,1760466647522,-500.0,0.00016438,2]
[391281945,1760466647532,-624.18,0.00016438,2]
[391281946,1760466647541,-500.0,0.00016438,2]
[391281947,1760466647551,-500.0,0.00016438,2]
[391281948,1760466647560,-500.0,0.00016438,2]
[391281949,1760466647571,-1559.62,0.00016438,2]
[391281950,1760466647581,-533.24,0.00016438,2]
[391281951,1760466647591,-500.0,0.00016438,2]
[391281952,1760466647600,-500.0,0.00016438,2]
[391281953,1760466647610,-500.0,0.00016438,2]
[391281954,1760466647619,-2143.97,0.00016438,2]
[391281955,1760466647629,-1467.27,0.00016438,2]
[391281956,1760466647638,-641.78,0.00016438,2]
[391281957,1760466647647,-500.0,0.00016438,2]
[391281958,1760466647657,-607.98,0.00016438,2]
[391281959,1760466647666,-725.92,0.00016438,2]
[391281960,1760466647675,-584.61,0.00016438,2]
[391281961,1760466647684,-774.92,0.00016438,2]
[391281962,1760466647692,-598.96,0.00016438,2]
[391281963,1760466647701,-500.0,0.00016438,2]
[391281964,1760466647711,-500.0,0.00016438,2]
[391281965,1760466647720,-500.0,0.00016438,2]
[391281966,1760466647729,-151.0,0.00016438,2]
[391281967,1760466647738,-500.0,0.00016438,2]
[391281968,1760466647747,-500.0,0.00016438,2]
[391281969,1760466647756,-690.86,0.00016438,2]
[391281970,1760466647764,-547.91,0.00016438,2]
[391281971,1760466647773,-629.91,0.00016438,2]
[391281972,1760466647782,-1024.46,0.00016438,2]
[391281973,1760466647791,-500.0,0.00016438,2]
[391281974,1760466647800,-638.11,0.00016438,2]
[391281975,1760466647809,-637.28,0.00016438,2]
[391281976,1760466647820,-500.0,0.00016438,2]
[391281977,1760466647829,-500.0,0.00016438,2]
[391281978,1760466647838,-628.93,0.00016438,2]
[391281979,1760466647846,-1054.42,0.00016438,2]
[391281980,1760466647855,-500.0,0.00016438,2]
[391281981,1760466647864,-500.0,0.00016438,2]
[391281982,1760466647873,-500.0,0.00016438,2]
[391281983,1760466647882,-779.14,0.00016438,2]
[391281984,1760466647891,-1218.35,0.00016438,2]
[391281985,1760466647900,-500.0,0.00016438,2]
[391281986,1760466647908,-500.0,0.00016438,2]
[391281987,1760466647918,-2221.23,0.00016438,2]
[391281988,1760466647927,-500.0,0.00016438,2]
[391281989,1760466647935,-686.11,0.00016438,2]
[391281990,1760466647945,-1061.91,0.00016438,2]
[391281991,1760466647954,-500.0,0.00016438,2]
[391281992,1760466647963,-2036.65,0.00016438,2]
[391281993,1760466647972,-500.0,0.00016438,2]
[391281994,1760466647981,-601.18,0.00016438,2]
[391281995,1760466647990,-726.15,0.00016438,2]
[391281996,1760466647999,-500.0,0.00016438,2]
[391281997,1760466648008,-500.0,0.00016438,2]
[391281998,1760466648018,-500.0,0.00016438,2]
[391281999,1760466648027,-715.11,0.00016438,2]
[391282000,1760466648036,-1684.06,0.00016438,2]
[391282001,1760466648044,-500.0,0.00016438,2]
[391282002,1760466648053,-500.0,0.00016438,2]
[391282003,1760466648062,-500.0,0.00016438,2]
[391282004,1760466648073,-500.0,0.00016438,2]
[391282005,1760466648082,-500.0,0.00016438,2]
[391282006,1760466648095,-500.0,0.00016438,2]
[391282007,1760466648104,-1090.76,0.00016438,2]
[391282008,1760466648113,-1077.21,0.00016438,2]
[391282009,1760466648122,-500.0,0.00016438,2]
[391282010,1760466648132,-500.0,0.00016438,2]
[391282011,1760466648141,-500.0,0.00016438,2]
[391282012,1760466648151,-500.0,0.00016438,2]
[391282013,1760466648161,-2087.17,0.00016438,2]
[391282014,1760466648170,-353.6,0.00016438,2]
[391282015,1760466648180,-500.0,0.00016438,2]
[391282016,1760466648189,-500.0,0.00016438,2]
[391282017,1760466648199,-500.0,0.00016438,2]
[391282018,1760466648208,-500.0,0.00016438,2]
[391282019,1760466648218,-633.78,0.00016438,2]
[391282020,1760466648227,-773.0,0.00016438,2]
[391282021,1760466648238,-500.0,0.00016438,2]
[391282022,1760466648246,-500.0,0.00016438,2]
[391282023,1760466648255,-553.38,0.00016438,2]
[391282024,1760466648264,-500.0,0.00016438,2]
[391282025,1760466648273,-251.27135736,0.00016438,2]
[391282026,1760466648282,-500.0,0.00016438,2]
[391282027,1760466648291,-500.0,0.00016438,2]
[391282028,1760466648300,-1083.53,0.00016438,2]
[391282029,1760466648309,-500.0,0.00016438,2]
[391282030,1760466648321,-151.0,0.00016438,2]
[391282031,1760466648330,-151.0,0.00016438,2]
[391282032,1760466648339,-1474.83,0.00016438,2]
[391282033,1760466648348,-743.29,0.00016438,2]
[391282034,1760466648357,-500.0,0.00016438,2]
[391282035,1760466648366,-152.44884,0.00016438,2]
[391282036,1760466648376,-500.0,0.00016438,2]
[391282037,1760466648385,-500.0,0.00016438,2]
[391282038,1760466648394,-151.0,0.00016438,2]
[391282039,1760466648405,-1137.86,0.00016438,2]
[391282040,1760466648414,-500.0,0.00016438,2]
[391282041,1760466648423,-500.0,0.00016438,2]
[391282042,1760466648432,-500.0,0.00016438,2]
[391282043,1760466648442,-500.0,0.00016438,2]
[391282044,1760466648452,-500.0,0.00016438,2]
[391282045,1760466648465,-500.0,0.00016438,2]
[391282046,1760466648474,-609.42,0.00016438,2]
[391282047,1760466648486,-500.0,0.00016438,2]
[391282048,1760466648495,-1733.78,0.00016438,2]
[391282049,1760466648505,-758.24,0.00016438,2]
[391282050,1760466648514,-500.0,0.00016438,2]
[391282051,1760466648523,-500.0,0.00016438,2]
[391282052,1760466648532,-500.0,0.00016438,2]
[391282053,1760466648541,-499.07563827,0.00016438,2]
[391282054,1760466648550,-679.38,0.00016438,2]
[391282055,1760466648559,-500.0,0.00016438,2]
[391282056,1760466648569,-500.0,0.00016438,2]
[391282057,1760466648578,-500.0,0.00016438,2]
[391282058,1760466648587,-500.0,0.00016438,2]
[391282059,1760466648596,-500.0,0.00016438,2]
[391282060,1760466648605,-500.0,0.00016438,2]
[391282061,1760466648614,-500.0,0.00016438,2]
[391282062,1760466648623,-814.89,0.00016438,2]
[391282063,1760466648632,-500.0,0.00016438,2]
[391282064,1760466648641,-500.0,0.00016438,2]
[391282065,1760466648650,-900.92,0.00016438,2]
[391282066,1760466648659,-500.0,0.00016438,2]
[391282067,1760466648669,-500.0,0.00016438,2]
[391282068,1760466648678,-500.0,0.00016438,2]
[391282069,1760466648687,-598.06,0.00016438,2]
[391282070,1760466648696,-500.0,0.00016438,2]
[391282071,1760466648705,-500.0,0.00016438,2]
[391282072,1760466648714,-921.42,0.00016438,2]
[391282073,1760466648723,-500.0,0.00016438,2]
[391282074,1760466648731,-2625.41,0.00016438,2]
[391282075,1760466648740,-500.0,0.00016438,2]
[391282076,1760466648750,-1489.76,0.00016438,2]
[391282077,1760466648759,-500.0,0.00016438,2]
[391282078,1760466648768,-500.0,0.00016438,2]
[391282079,1760466648777,-660.32,0.00016438,2]
[391282080,1760466648786,-1295.61,0.00016438,2]
[391282081,1760466649043,-272.92200748,0.00016438,2]
[391282082,1760466649052,-571.92,0.00016438,2]
[391282083,1760466649062,-500.0,0.00016438,2]
[391282084,1760466649072,-500.0,0.00016438,2]
[391282085,1760466649081,-509.83,0.00016438,2]
[391282086,1760466649090,-923.33,0.00016438,2]
[391282087,1760466649099,-610.34,0.00016438,2]
[391282088,1760466649107,-500.0,0.00016438,2]
[391282089,1760466649116,-500.0,0.00016438,2]
[391282090,1760466649125,-500.0,0.00016438,2]
[391282091,1760466649134,-500.0,0.00016438,2]
[391282092,1760466649143,-897.44,0.00016438,2]
[391282093,1760466649152,-500.0,0.00016438,2]
[391282094,1760466649162,-500.0,0.00016438,2]
[391282095,1760466649171,-500.0,0.00016438,2]
[391282096,1760466649181,-500.0,0.00016438,2]
[391282097,1760466649190,-500.0,0.00016438,2]
[391282098,1760466649199,-240.40808399,0.00016438,2]
[391282099,1760466649208,-500.0,0.00016438,2]
[391282100,1760466649217,-840.55,0.00016438,2]
[391282101,1760466649226,-500.0,0.00016438,2]
[391282102,1760466649235,-620.33420732,0.00016438,2]
[391282103,1760466649243,-500.0,0.00016438,2]
[391282104,1760466649252,-500.0,0.00016438,2]
[391282105,1760466649262,-500.0,0.00016438,2]
[391282106,1760466649271,-1700.07,0.00016438,2]
[391282107,1760466649280,-744.97,0.00016438,2]
[391282108,1760466649289,-500.0,0.00016438,2]
[391282109,1760466649298,-671.29,0.00016438,2]
[391282110,1760466649307,-500.0,0.00016438,2]
[391282111,1760466649316,-1669.48,0.00016438,2]
[391282112,1760466649326,-797.15,0.00016438,2]
[391282113,1760466649335,-500.0,0.00016438,2]
[391282114,1760466649344,-500.0,0.00016438,2]
[391282115,1760466649353,-500.0,0.00016438,2]
[391282116,1760466649362,-500.0,0.00016438,2]
[391282117,1760466649371,-508.75,0.00016438,2]
[391282118,1760466649381,-673.34,0.00016438,2]
[391282119,1760466649390,-151.0,0.00016438,2]
[391282120,1760466649399,-151.0,0.00016438,2]
[391282121,1760466649413,-163.352097,0.00016438,2]
[391282122,1760466649423,-650.0,0.00016438,2]
[391282123,1760466649432,-500.0,0.00016438,2]
[391282124,1760466649441,-602.76,0.00016438,2]
[391282125,1760466649451,-151.0,0.00016438,2]
[391282126,1760466649460,-165.054009,0.00016438,2]
[391282127,1760466649470,-500.0,0.00016438,2]
[391282128,1760466649481,-684.11,0.00016438,2]
[391282129,1760466649490,-500.0,0.00016438,2]
[391282130,1760466649499,-500.0,0.00016438,2]
[391282131,1760466649508,-758.42,0.00016438,2]
[391282132,1760466649518,-1454.01,0.00016438,2]
[391282133,1760466649527,-500.0,0.00016438,2]
[391282134,1760466649536,-201.400518,0.00016438,2]
[391282135,1760466649546,-500.0,0.00016438,2]
[391282136,1760466649555,-500.0,0.00016438,2]
[391282137,1760466649565,-727.66,0.00016438,2]
[391282138,1760466649575,-1851.1,0.00016438,2]
[391282139,1760466649584,-808.4,0.00016438,2]
[391282140,1760466649593,-500.0,0.00016438,2]
[391282141,1760466649603,-1289.71,0.00016438,2]
[391282142,1760466649612,-1508.21,0.00016438,2]
[391282143,1760466649621,-1358.88,0.00016438,2]
[391282144,1760466649630,-1767.87,0.00016438,2]
[391282145,1760466649639,-971.54,0.00016438,2]
[391282146,1760466649648,-1908.88,0.00016438,2]
[391282147,1760466649657,-517.42982687,0.00016438,2]
[391282148,1760466649666,-500.0,0.00016438,2]
[391282149,1760466649675,-500.0,0.00016438,2]
[391282150,1760466649685,-1063.78,0.00016438,2]
[391282151,1760466649694,-500.0,0.00016438,2]
[391282152,1760466649703,-613.92,0.00016438,2]
[391282153,1760466649712,-151.0,0.00016438,2]
[391282154,1760466649722,-151.0,0.00016438,2]
[391282155,1760466649731,-500.0,0.00016438,2]
[391282156,1760466649740,-151.0,0.00016438,2]
[391282157,1760466649750,-151.0,0.00016438,2]
[391282158,1760466649759,-151.0,0.00016438,2]
[391282159,1760466649769,-151.0,0.00016438,2]
[391282160,1760466649778,-500.0,0.00016438,2]
[391282161,1760466649787,-151.0,0.00016438,2]
[391282162,1760466649797,-151.0,0.00016438,2]
[391282163,1760466649806,-500.0,0.00016438,2]
[391282164,1760466649815,-500.0,0.00016438,2]
[391282165,1760466649825,-154.83516787,0.00016438,2]
[391282166,1760466649834,-500.0,0.00016438,2]
[391282167,1760466649843,-871.16,0.00016438,2]
[391282168,1760466649852,-500.0,0.00016438,2]
[391282169,1760466649861,-541.15,0.00016438,2]
[391282170,1760466649871,-500.0,0.00016438,2]
[391282171,1760466649880,-500.0,0.00016438,2]
[391282172,1760466649889,-500.0,0.00016438,2]
[391282173,1760466649898,-500.0,0.00016438,2]
[391282174,1760466649907,-500.0,0.00016438,2]
[391282175,1760466649916,-500.0,0.00016438,2]
[391282176,1760466649926,-500.0,0.00016438,2]
[391282177,1760466649935,-1633.9,0.00016438,2]
[391282178,1760466649944,-500.0,0.00016438,2]
[391282179,1760466649954,-626.74,0.00016438,2]
[391282180,1760466649963,-500.0,0.00016438,2]
[391282181,1760466649972,-651.27,0.00016438,2]
[391282182,1760466649981,-500.0,0.00016438,2]
[391282183,1760466649991,-1595.79,0.00016438,2]
[391282184,1760466650000,-500.0,0.00016438,2]
[391282185,1760466650010,-735.91,0.00016438,2]
[391282186,1760466650018,-500.0,0.00016438,2]
[391282187,1760466650027,-1693.39,0.00016438,2]
[391282188,1760466650036,-1693.39,0.00016438,2]
[391282189,1760466650046,-500.0,0.00016438,2]
[391282190,1760466650056,-500.0,0.00016438,2]
[391282191,1760466650065,-500.0,0.00016438,2]
[391282192,1760466650075,-1529.73,0.00016438,2]
[391282193,1760466650085,-500.0,0.00016438,2]
[391282194,1760466650094,-1944.83,0.00016438,2]
[391282195,1760466650102,-509.46,0.00016438,2]
[391282196,1760466650111,-500.0,0.00016438,2]
[391282197,1760466650120,-1104.37,0.00016438,2]
[391282198,1760466650129,-500.0,0.00016438,2]
[391282199,1760466650139,-548.8,0.00016438,2]
[391282200,1760466650148,-500.0,0.00016438,2]
[391282201,1760466650157,-500.0,0.00016438,2]
[391282202,1760466650166,-500.0,0.00016438,2]
[391282203,1760466650175,-500.0,0.00016438,2]
[391282204,1760466650184,-153.655785,0.00016438,2]
[391282205,1760466650196,-500.0,0.00016438,2]
[391282206,1760466650206,-500.0,0.00016438,2]
[391282207,1760466650215,-1286.34,0.00016438,2]
[391282208,1760466650224,-500.0,0.00016438,2]
[391282209,1760466650234,-500.0,0.00016438,2]
[391282210,1760466650243,-500.0,0.00016438,2]
[391282211,1760466650252,-500.0,0.00016438,2]
[391282212,1760466650261,-719.03,0.00016438,2]
[391282213,1760466650270,-1040.75,0.00016438,2]
[391282214,1760466650280,-500.0,0.00016438,2]
[391282215,1760466650288,-500.0,0.00016438,2]
[391282216,1760466650298,-1407.55,0.00016438,2]
[391282217,1760466650307,-500.0,0.00016438,2]
[391282218,1760466650316,-500.0,0.00016438,2]
[391282219,1760466650326,-1959.42,0.00016438,2]
[391282220,1760466650335,-1138.22,0.00016438,2]
[391282221,1760466650344,-500.0,0.00016438,2]
[391282222,1760466650353,-500.0,0.00016438,2]
[391282223,1760466650361,-1302.89,0.00016438,2]
[391282224,1760466650370,-751.89,0.00016438,2]
[391282225,1760466650379,-500.0,0.00016438,2]
[391282226,1760466650391,-674.47,0.00016438,2]
[391282227,1760466650406,-500.0,0.00016438,2]
[391282228,1760466650415,-1585.33,0.00016438,2]
[391282229,1760466650424,-500.0,0.00016438,2]
[391282230,1760466650433,-500.0,0.00016438,2]
[391282231,1760466650444,-1157.63,0.00016438,2]
[391282232,1760466650453,-500.0,0.00016438,2]
[391282233,1760466650463,-500.0,0.00016438,2]
[391282234,1760466650472,-500.0,0.00016438,2]
[391282235,1760466650482,-151.0,0.00016438,2]
[391282236,1760466650491,-1390.44,0.00016438,2]
[391282237,1760466650500,-151.0,0.00016438,2]
[391282238,1760466650510,-500.0,0.00016438,2]
[391282239,1760466650519,-587.81,0.00016438,2]
[391282240,1760466650529,-151.0,0.00016438,2]
[391282241,1760466650539,-151.0,0.00016438,2]
[391282242,1760466650548,-500.0,0.00016438,2]
[391282243,1760466650557,-151.0,0.00016438,2]
[391282244,1760466650566,-151.0,0.00016438,2]
[391282245,1760466650576,-151.0,0.00016438,2]
[391282246,1760466650585,-182.361935,0.00016438,2]
[391282247,1760466650597,-1976.2,0.00016438,2]
[391282248,1760466650607,-591.25,0.00016438,2]
[391282249,1760466650616,-500.0,0.00016438,2]
[391282250,1760466650625,-682.59,0.00016438,2]
[391282251,1760466650634,-500.0,0.00016438,2]
[391282252,1760466650644,-500.0,0.00016438,2]
[391282253,1760466650653,-500.0,0.00016438,2]
[391282254,1760466650662,-500.0,0.00016438,2]
[391282255,1760466650672,-500.0,0.00016438,2]
[391282256,1760466650681,-1120.09,0.00016438,2]
[391282257,1760466650690,-500.0,0.00016438,2]
[391282258,1760466650699,-500.0,0.00016438,2]
[391282259,1760466650709,-500.0,0.00016438,2]
[391282260,1760466650718,-638.08,0.00016438,2]
[391282261,1760466650727,-500.0,0.00016438,2]
[391282262,1760466650736,-500.0,0.00016438,2]
[391282263,1760466650745,-500.0,0.00016438,2]
[391282264,1760466650754,-936.35,0.00016438,2]
[391282265,1760466650764,-500.0,0.00016438,2]
[391282266,1760466650773,-500.0,0.00016438,2]
[391282267,1760466650782,-500.0,0.00016438,2]
[391282268,1760466650792,-500.0,0.00016438,2]
[391282269,1760466650802,-500.0,0.00016438,2]
[391282270,1760466650811,-500.0,0.00016438,2]
[391282271,1760466650822,-500.0,0.00016438,2]
[391282272,1760466650831,-1047.12,0.00016438,2]
[391282273,1760466650840,-641.8,0.00016438,2]
[391282274,1760466650849,-500.0,0.00016438,2]
[391282275,1760466650858,-833.35,0.00016438,2]
[391282276,1760466650867,-500.0,0.00016438,2]
[391282277,1760466650876,-811.95,0.00016438,2]
[391282278,1760466650886,-500.0,0.00016438,2]
[391282279,1760466650895,-500.0,0.00016438,2]
[391282280,1760466650904,-939.94,0.00016438,2]
[391282281,1760466650913,-1282.87,0.00016438,2]
[391282282,1760466650923,-500.0,0.00016438,2]
[391282283,1760466650932,-500.0,0.00016438,2]
[391282284,1760466650942,-1188.48,0.00016438,2]
[391282285,1760466650951,-500.0,0.00016438,2]
[391282286,1760466650961,-514.68,0.00016438,2]
[391282287,1760466650980,-500.0,0.00016438,2]
[391282288,1760466650991,-697.49,0.00016438,2]
[391282289,1760466651002,-3695.58,0.00016438,2]
[391282290,1760466651013,-500.0,0.00016438,2]
[391282291,1760466651022,-640.7166184,0.00016438,2]
[391282292,1760466651032,-676.65,0.00016438,2]
[391282293,1760466651042,-1489.3,0.00016438,2]
[391282294,1760466651052,-508.84,0.00016438,2]
[391282295,1760466651062,-500.0,0.00016438,2]
[391282296,1760466651072,-927.85,0.00016438,2]
[391282297,1760466651083,-698.48,0.00016438,2]
[391282298,1760466651093,-778.59,0.00016438,2]
[391282299,1760466651103,-500.0,0.00016438,2]
[391282300,1760466651113,-567.24,0.00016438,2]